fUST/lending_fUST_20250319
["ID","MTS","AMOUNT","RATE_DAILY","PERIOD"]
[356350682,1742326232536,-500.0,8.218e-05,2]
[356350683,1742326232546,-500.0,8.218e-05,2]
[356350685,1742326232555,-404.6719244,8.218e-05,2]
[356350686,1742326232567,-500.0,8.218e-05,2]
[356350687,1742326232577,-193.60228805,8.218e-05,2]
[356350688,1742326232587,-201.87425613,8.218e-05,2]
[356350689,1742326232597,-4127.65305841,8.219e-05,2]
[356350690,1742326232609,-500.0,8.219e-05,2]
[356350691,1742326232619,-500.0,8.219e-05,2]
[356350692,1742326232627,-261.27830482,8.219e-05,2]
[356350693,1742326232636,-500.0,8.219e-05,2]
[356350694,1742326232647,-500.0,8.219e-05,2]
[356350695,1742326232656,-500.0,8.219e-05,2]
[356350696,1742326232665,-500.0,8.219e-05,2]
[356350697,1742326232674,-500.0,8.219e-05,2]
[356350699,1742326232683,-500.0,8.219e-05,2]
[356350701,1742326232693,-500.0,8.219e-05,2]
[356350703,1742326232703,-500.0,8.219e-05,2]
[356350705,1742326232713,-506.14330477,8.219e-05,2]
[356350707,1742326232723,-500.0,8.219e-05,2]
[356350708,1742326232733,-500.0,8.219e-05,2]
[356350709,1742326232743,-500.0,8.219e-05,2]
[356350710,1742326232753,-500.0,8.219e-05,2]
[356350711,1742326232763,-500.0,8.219e-05,2]
[356350712,1742326232774,-517.31446003,8.219e-05,2]
[356350713,1742326232784,-500.0,8.219e-05,2]
[356350714,1742326232794,-500.0,8.219e-05,2]
[356350715,1742326232804,-500.0,8.219e-05,2]
[356350716,1742326232815,-500.0,8.219e-05,2]
[356350717,1742326232825,-500.0,8.219e-05,2]
[356350718,1742326232837,-500.0,8.219e-05,2]
[356350719,1742326232847,-500.0,8.219e-05,2]
[356350720,1742326232858,-500.0,8.219e-05,2]
[356350721,1742326232868,-500.0,8.219e-05,2]
[356350722,1742326232878,-500.0,8.219e-05,2]
[356350723,1742326232888,-500.0,8.219e-05,2]
[356350724,1742326232898,-500.0,8.219e-05,2]
[356350725,1742326232908,-500.0,8.219e-05,2]
[356350726,1742326232918,-441.79478034,8.219e-05,2]
[356350727,1742326232928,-500.0,8.219e-05,2]
[356350728,1742326232938,-500.0,8.219e-05,2]
[356350729,1742326232948,-529.89642877,8.219e-05,2]
[356350730,1742326232958,-500.0,8.219e-05,2]
[356350731,1742326232968,-500.0,8.219e-05,2]
[356350732,1742326232977,-500.0,8.219e-05,2]
[356350733,1742326232986,-500.0,8.219e-05,2]
[356350734,1742326232996,-196.66373468,8.219e-05,2]
[356350735,1742326233006,-507.812802,8.219e-05,2]
[356350736,1742326233016,-500.0,8.219e-05,2]
[356350737,1742326233025,-500.0,8.219e-05,2]
[356350738,1742326233036,-500.0,8.219e-05,2]
[356350739,1742326233047,-500.0,8.219e-05,2]
[356350740,1742326233057,-500.0,8.219e-05,2]
[356350741,1742326233067,-500.0,8.219e-05,2]
[356350742,1742326233077,-500.0,8.219e-05,2]
[356350743,1742326233087,-507.71896597,8.219e-05,2]
[356350744,1742326233097,-500.0,8.219e-05,2]
[356350745,1742326233109,-502.79801055,8.219e-05,2]
[356350746,1742326233119,-500.0,8.219e-05,2]
[356350747,1742326233129,-500.0,8.219e-05,2]
[356350748,1742326233139,-500.0,8.219e-05,2]
[356350749,1742326233149,-500.0,8.219e-05,2]
[356350750,1742326233159,-500.0,8.219e-05,2]
[356350751,1742326233169,-500.0,8.219e-05,2]
[356350752,1742326233179,-500.0,8.219e-05,2]
[356350753,1742326233188,-504.42775523,8.219e-05,2]
[356350754,1742326233199,-500.0,8.219e-05,2]
[356350755,1742326233209,-500.0,8.219e-05,2]
[356350756,1742326233219,-500.0,8.219e-05,2]
[356350757,1742326233229,-500.0,8.219e-05,2]
[356350758,1742326233240,-500.0,8.219e-05,2]
[356350759,1742326233250,-500.0,8.219e-05,2]
[356350760,1742326233260,-516.94642719,8.219e-05,2]
[356350761,1742326233455,-500.0,8.219e-05,2]
[356350762,1742326233466,-505.07963043,8.219e-05,2]
[356350763,1742326233477,-500.0,8.219e-05,2]
[356350764,1742326233487,-500.0,8.219e-05,2]
[356350765,1742326233498,-480.93401363,8.219e-05,2]
[356350766,1742326233509,-500.0,8.219e-05,2]
[356350767,1742326233519,-507.29958975,8.219e-05,2]
[356350768,1742326233529,-500.0,8.219e-05,2]
[356350769,1742326233539,-500.0,8.219e-05,2]
[356350770,1742326233549,-500.0,8.219e-05,2]
[356350771,1742326233562,-500.0,8.219e-05,2]
[356350772,1742326233575,-500.0,8.219e-05,2]
[356350773,1742326233585,-500.0,8.219e-05,2]
[356350774,1742326233595,-500.0,8.219e-05,2]
[356350775,1742326233609,-500.0,8.219e-05,2]
[356350776,1742326233619,-500.0,8.219e-05,2]
[356350777,1742326233629,-282.154472,8.219e-05,2]
[356350778,1742326233639,-500.0,8.219e-05,2]
[356350779,1742326233650,-500.0,8.219e-05,2]
[356350780,1742326233661,-500.0,8.219e-05,2]
[356350781,1742326233671,-500.0,8.219e-05,2]
[356350782,1742326233681,-403.15620718,8.219e-05,2]
[356350783,1742326233692,-500.0,8.219e-05,2]
[356350784,1742326233702,-500.0,8.219e-05,2]
[356350785,1742326233712,-507.26471066,8.219e-05,2]
[356350786,1742326233723,-500.0,8.219e-05,2]
[356350787,1742326233734,-235.94587275,8.219e-05,2]
[356350788,1742326233745,-500.0,8.219e-05,2]
[356350789,1742326233755,-500.0,8.219e-05,2]
[356350790,1742326233766,-500.0,8.219e-05,2]
[356350791,1742326233776,-500.716548,8.219e-05,2]
[356350792,1742326233786,-500.0,8.219e-05,2]
[356350793,1742326233796,-500.0,8.219e-05,2]
[356350794,1742326233805,-500.0,8.219e-05,2]
[356350795,1742326233815,-500.0,8.219e-05,2]
[356350796,1742326233826,-500.0,8.219e-05,2]
[356350797,1742326233837,-500.92861038,8.219e-05,2]
[356350798,1742326233847,-500.0,8.219e-05,2]
[356350799,1742326233857,-500.0,8.219e-05,2]
[356350800,1742326233866,-500.0,8.219e-05,2]
[356350801,1742326233876,-504.00068672,8.219e-05,2]
[356350802,1742326233887,-501.62871989,8.219e-05,2]
[356350803,1742326233897,-500.0,8.219e-05,2]
[356350804,1742326233908,-500.0,8.219e-05,2]
[356350805,1742326233918,-500.0,8.219e-05,2]
[356350806,1742326233928,-500.0,8.219e-05,2]
[356350807,1742326233939,-500.0,8.219e-05,2]
[356350808,1742326233948,-500.0,8.219e-05,2]
[356350809,1742326233959,-500.0,8.219e-05,2]
[356350810,1742326233968,-500.0,8.219e-05,2]
[356350811,1742326233978,-500.0,8.219e-05,2]
[356350812,1742326233988,-500.0,8.219e-05,2]
[356350813,1742326233999,-502.786243,8.219e-05,2]
[356350814,1742326234010,-500.0,8.219e-05,2]
[356350815,1742326234021,-500.0,8.219e-05,2]
[356350816,1742326234031,-511.37181439,8.219e-05,2]
[356350817,1742326234041,-502.05708543,8.219e-05,2]
[356350818,1742326234051,-505.0466875,8.219e-05,2]
[356350819,1742326234061,-501.1935147,8.219e-05,2]
[356350820,1742326234071,-503.9478968,8.219e-05,2]
[356350821,1742326234081,-500.0,8.219e-05,2]
[356350822,1742326234091,-500.0,8.219e-05,2]
[356350823,1742326234101,-500.0,8.219e-05,2]
[356350824,1742326234113,-500.0,8.219e-05,2]
[356350825,1742326234123,-505.69441153,8.219e-05,2]
[356350826,1742326234133,-500.0,8.219e-05,2]
[356350827,1742326234144,-500.0,8.219e-05,2]
[356350828,1742326234153,-502.85277122,8.219e-05,2]
[356350829,1742326234164,-500.0,8.219e-05,2]
[356350830,1742326234174,-500.0,8.219e-05,2]
[356350831,1742326234184,-500.0,8.219e-05,2]
[356350832,1742326234194,-500.0,8.219e-05,2]
[356350833,1742326234203,-500.0,8.219e-05,2]
[356350834,1742326234214,-505.3001398,8.219e-05,2]
[356350835,1742326234223,-500.0,8.219e-05,2]
[356350836,1742326234233,-500.0,8.219e-05,2]
[356350837,1742326234243,-505.07885002,8.219e-05,2]
[356350838,1742326234253,-500.0,8.219e-05,2]
[356350839,1742326234262,-500.0,8.219e-05,2]
[356350840,1742326234273,-500.0,8.219e-05,2]
[356350841,1742326234283,-516.94011949,8.219e-05,2]
[356350842,1742326234292,-500.0,8.219e-05,2]
[356350843,1742326234303,-500.0,8.219e-05,2]
[356350844,1742326234313,-500.0,8.219e-05,2]
[356350845,1742326234323,-500.0,8.219e-05,2]
[356350846,1742326234333,-502.41258668,8.219e-05,2]
[356350847,1742326234343,-500.0,8.219e-05,2]
[356350848,1742326234354,-500.0,8.219e-05,2]
[356350849,1742326234364,-500.0,8.219e-05,2]
[356350850,1742326234374,-500.0,8.219e-05,2]
[356350851,1742326234384,-500.0,8.219e-05,2]
[356350852,1742326234395,-500.0,8.219e-05,2]
[356350853,1742326234405,-500.0,8.219e-05,2]
[356350854,1742326234415,-500.0,8.219e-05,2]
[356350855,1742326234424,-500.0,8.219e-05,2]
[356350856,1742326234433,-502.12871722,8.219e-05,2]
[356350857,1742326234443,-500.0,8.219e-05,2]
[356350858,1742326234453,-502.96052516,8.219e-05,2]
[356350859,1742326234462,-500.0,8.219e-05,2]
[356350860,1742326234472,-500.0,8.219e-05,2]
[356350861,1742326234482,-501.72628447,8.219e-05,2]
[356350862,1742326234491,-500.0,8.219e-05,2]
[356350863,1742326234502,-500.0,8.219e-05,2]
[356350864,1742326234512,-501.08504178,8.219e-05,2]
[356350865,1742326234521,-500.0,8.219e-05,2]
[356350866,1742326234530,-500.0,8.219e-05,2]
[356350867,1742326234539,-500.0,8.219e-05,2]
[356350868,1742326234548,-502.17720729,8.219e-05,2]
[356350869,1742326234562,-500.0,8.219e-05,2]
[356350870,1742326234571,-500.0,8.219e-05,2]
[356350871,1742326234581,-500.0,8.219e-05,2]
[356350872,1742326234591,-500.0,8.219e-05,2]
[356350873,1742326234600,-500.0,8.219e-05,2]
[356350874,1742326234612,-500.0,8.219e-05,2]
[356350875,1742326234622,-500.0,8.219e-05,2]
[356350876,1742326234632,-500.0,8.219e-05,2]
[356350877,1742326234644,-259.69334995,8.219e-05,2]
[356350878,1742326234654,-501.98807863,8.219e-05,2]
[356350879,1742326234664,-500.0,8.219e-05,2]
[356350880,1742326234674,-500.0,8.219e-05,2]
[356350881,1742326234683,-504.46071063,8.219e-05,2]
[356350882,1742326234693,-267.8954915,8.219e-05,2]
[356350883,1742326234703,-500.0,8.219e-05,2]
[356350884,1742326234712,-500.0,8.219e-05,2]
[356350885,1742326234722,-23391.75,8.219e-05,2]
[356350886,1742326234731,-436.1515482,8.219e-05,2]
[356350887,1742326234741,-500.0,8.219e-05,2]
[356350888,1742326234751,-352.24032213,8.219e-05,2]
[356350889,1742326234760,-500.0,8.219e-05,2]
[356350890,1742326234770,-500.0,8.219e-05,2]
[356350891,1742326234779,-500.0,8.219e-05,2]
[356350892,1742326234788,-500.0,8.219e-05,2]
[356350893,1742326234798,-500.0,8.219e-05,2]
[356350894,1742326234808,-500.0,8.219e-05,2]
[356350895,1742326234818,-500.0,8.219e-05,2]
[356350896,1742326234828,-500.0,8.219e-05,2]
[356350897,1742326234838,-500.0,8.219e-05,2]
[356350898,1742326234847,-553.76345684,8.219e-05,2]
[356350899,1742326234858,-260.0,8.219e-05,2]
[356350900,1742326234868,-500.0,8.219e-05,2]
[356350901,1742326234878,-512.88753244,8.219e-05,2]
[356350902,1742326234887,-500.0,8.219e-05,2]
[356350903,1742326234897,-500.0,8.219e-05,2]
[356350904,1742326234906,-500.0,8.219e-05,2]
[356350905,1742326234915,-500.0,8.219e-05,2]
[356350906,1742326234924,-500.0,8.219e-05,2]
[356350907,1742326234933,-218.5253549,8.219e-05,2]
[356350908,1742326234942,-500.0,8.219e-05,2]
[356350909,1742326234951,-500.0,8.219e-05,2]
[356350910,1742326234960,-500.0,8.219e-05,2]
[356350911,1742326234970,-500.0,8.219e-05,2]
[356350912,1742326234980,-500.0,8.219e-05,2]
[356350913,1742326234990,-1010.56,8.219e-05,2]
[356350914,1742326234999,-500.0,8.219e-05,2]
[356350915,1742326235009,-500.0,8.219e-05,2]
[356350916,1742326235018,-500.0,8.219e-05,2]
[356350917,1742326235027,-507.3793351,8.219e-05,2]
[356350918,1742326235036,-500.0,8.219e-05,2]
[356350919,1742326235045,-500.0,8.219e-05,2]
[356350920,1742326235054,-519.06061998,8.219e-05,2]
[356350921,1742326235063,-151.0,8.219e-05,2]
[356350922,1742326235073,-500.0,8.219e-05,2]
[356350923,1742326235082,-500.0,8.219e-05,2]
[356350924,1742326235091,-500.0,8.219e-05,2]
[356350925,1742326235100,-500.0,8.219e-05,2]
[356350926,1742326235111,-500.0,8.219e-05,2]
[356350927,1742326235120,-500.0,8.219e-05,2]
[356350928,1742326235130,-500.0,8.219e-05,2]
[356350929,1742326235139,-500.0,8.219e-05,2]
[356350930,1742326235148,-501.23941656,8.219e-05,2]
[356350931,1742326235158,-577.83293517,8.219e-05,2]
[356350932,1742326235167,-500.0,8.219e-05,2]
[356350933,1742326235176,-500.0,8.219e-05,2]
[356350934,1742326235185,-500.0,8.219e-05,2]
[356350935,1742326235195,-507.18586277,8.219e-05,2]
[356350936,1742326235203,-506.24232103,8.219e-05,2]
[356350937,1742326235212,-500.0,8.219e-05,2]
[356350938,1742326235221,-500.0,8.219e-05,2]
[356350939,1742326235231,-500.0,8.219e-05,2]
[356350940,1742326235239,-402.68262168,8.219e-05,2]
[356350941,1742326235248,-500.0,8.219e-05,2]
[356350942,1742326235257,-507.60654201,8.219e-05,2]
[356350943,1742326235266,-500.0,8.219e-05,2]
[356350944,1742326235276,-500.0,8.219e-05,2]
[356350945,1742326235285,-500.0,8.219e-05,2]
[356350946,1742326235294,-500.0,8.219e-05,2]
[356350947,1742326235302,-500.0,8.219e-05,2]
[356350948,1742326235312,-500.0,8.219e-05,2]
[356350949,1742326235320,-510.94320681,8.219e-05,2]
[356350950,1742326235330,-506.83036934,8.219e-05,2]
[356350951,1742326235339,-500.0,8.219e-05,2]
[356350952,1742326235347,-185.36,8.219e-05,2]
[356350953,1742326235356,-500.0,8.219e-05,2]
[356350954,1742326235366,-500.0,8.219e-05,2]
[356350955,1742326235375,-500.0,8.219e-05,2]
[356350956,1742326235385,-500.0,8.219e-05,2]
[356350957,1742326235393,-500.0,8.219e-05,2]
[356350958,1742326235402,-500.0,8.219e-05,2]
[356350959,1742326235411,-500.0,8.219e-05,2]
[356350960,1742326235419,-500.0,8.219e-05,2]
[356350961,1742326235427,-500.0,8.219e-05,2]
[356350962,1742326235436,-307.4090598,8.219e-05,2]
[356350963,1742326235445,-500.0,8.219e-05,2]
[356350964,1742326235455,-500.0,8.219e-05,2]
[356350965,1742326235464,-510.64805852,8.219e-05,2]
[356350966,1742326235472,-518.40800632,8.219e-05,2]
[356350967,1742326235482,-505.21729796,8.219e-05,2]
[356350968,1742326235491,-500.0,8.219e-05,2]
[356350969,1742326235499,-501.35344598,8.219e-05,2]
[356350970,1742326235508,-520.29161285,8.219e-05,2]
[356350971,1742326235518,-552.96,8.219e-05,2]
[356350972,1742326235527,-500.0,8.219e-05,2]
[356350973,1742326235535,-619.04237138,8.219e-05,2]
[356350974,1742326235543,-504.25975349,8.219e-05,2]
[356350975,1742326235552,-500.0,8.219e-05,2]
[356350976,1742326235563,-500.0,8.219e-05,2]
[356350977,1742326235573,-511.01452945,8.219e-05,2]
[356350978,1742326235583,-500.0,8.219e-05,2]
[356350979,1742326235591,-500.0,8.219e-05,2]
[356350980,1742326235601,-502.16736028,8.219e-05,2]
[356350981,1742326235610,-500.0,8.219e-05,2]
[356350982,1742326235619,-528.44962558,8.219e-05,2]
[356350983,1742326235629,-500.0,8.219e-05,2]
[356350984,1742326235638,-500.0,8.219e-05,2]
[356350985,1742326235651,-500.0,8.219e-05,2]
[356350986,1742326235661,-500.0,8.219e-05,2]
[356350987,1742326235671,-500.0,8.219e-05,2]
[356350988,1742326235680,-500.0,8.219e-05,2]
[356350989,1742326235690,-500.0,8.219e-05,2]
[356350990,1742326235700,-465.43786922,8.219e-05,2]
[356350991,1742326235709,-500.0,8.219e-05,2]
[356350992,1742326235719,-500.0,8.219e-05,2]
[356350993,1742326235729,-500.0,8.219e-05,2]
[356350994,1742326235739,-500.0,8.219e-05,2]
[356350995,1742326235748,-500.0,8.219e-05,2]
[356350996,1742326235758,-513.32450694,8.219e-05,2]
[356350997,1742326235767,-500.0,8.219e-05,2]
[356350998,1742326235777,-500.0,8.219e-05,2]
[356350999,1742326235786,-500.0,8.219e-05,2]
[356351000,1742326235796,-500.0,8.219e-05,2]
[356351001,1742326235806,-500.0,8.219e-05,2]
[356351002,1742326235815,-500.0,8.219e-05,2]
[356351003,1742326235825,-62.38831626,8.219e-05,2]
[356351004,1742326235844,-437.61168374,8.219e-05,2]
[356351005,1742326235854,-505.87452876,8.219e-05,2]
[356351006,1742326235864,-172.73529768,8.219e-05,2]
[356351007,1742326235874,-507.17324702,8.219e-05,2]
[356351008,1742326235883,-500.0,8.219e-05,2]
[356351009,1742326235892,-500.0,8.219e-05,2]
[356351010,1742326235902,-500.0,8.219e-05,2]
[356351011,1742326235911,-509.81559453,8.219e-05,2]
[356351012,1742326235920,-200.27,8.219e-05,2]
[356351013,1742326235930,-500.0,8.219e-05,2]
[356351014,1742326235939,-399.61,8.219e-05,2]
[356351015,1742326235948,-500.0,8.219e-05,2]
[356351016,1742326235958,-500.0,8.219e-05,2]
[356351017,1742326235967,-500.0,8.219e-05,2]
[356351018,1742326235977,-500.0,8.219e-05,2]
[356351019,1742326235987,-628.72590273,8.219e-05,2]
[356351020,1742326235996,-461.23029521,8.219e-05,2]
[356351021,1742326236005,-500.0,8.219e-05,2]
[356351022,1742326236014,-500.0,8.219e-05,2]
[356351023,1742326236023,-500.0,8.219e-05,2]
[356351024,1742326236032,-500.0,8.219e-05,2]
[356351025,1742326236042,-500.0,8.219e-05,2]
[356351026,1742326236051,-462.93212355,8.219e-05,2]
[356351027,1742326236060,-512.12584188,8.219e-05,2]
[356351028,1742326236069,-500.0,8.219e-05,2]
[356351029,1742326236078,-522.08395859,8.219e-05,2]
[356351030,1742326236087,-500.0,8.219e-05,2]
[356351031,1742326236097,-500.0,8.219e-05,2]
[356351032,1742326236107,-503.03567306,8.219e-05,2]
[356351033,1742326236117,-500.0,8.329e-05,2]
[356351034,1742326236126,-500.0,8.329e-05,2]
[356351035,1742326236136,-500.0,8.33e-05,2]
[356351036,1742326236146,-500.0,8.492e-05,2]
[356351037,1742326236156,-500.0,8.492e-05,2]
[356351038,1742326236164,-500.0,8.492e-05,2]
[356351039,1742326236173,-500.0,8.492e-05,2]
[356351040,1742326236183,-500.0,8.492e-05,2]
[356351041,1742326236192,-500.0,8.492e-05,2]
[356351042,1742326236201,-500.0,8.493e-05,2]
[356351043,1742326236211,-500.0,8.493e-05,2]
[356351044,1742326236221,-503.37887939,8.493e-05,2]
[356351045,1742326236230,-500.0,8.493e-05,2]
[356351046,1742326236240,-506.81571065,8.493e-05,2]
[356351047,1742326236247,-500.0,8.493e-05,2]
[356351048,1742326236255,-500.0,8.493e-05,2]
[356351049,1742326236263,-511.58043631,8.493e-05,2]
[356351050,1742326236273,-23391.75,8.493e-05,2]
[356351051,1742326236282,-500.0,8.493e-05,2]
[356351052,1742326236291,-500.0,8.493e-05,2]
[356351053,1742326236300,-500.0,8.493e-05,2]
[356351054,1742326236309,-500.0,8.493e-05,2]
[356351055,1742326236319,-500.0,8.493e-05,2]
[356351056,1742326236329,-500.0,8.493e-05,2]
[356351057,1742326236339,-1010.56,8.493e-05,2]
[356351058,1742326236349,-500.0,8.493e-05,2]
[356351059,1742326236361,-196.5,8.493e-05,2]
[356351060,1742326236370,-500.0,8.493e-05,2]
[356351061,1742326236381,-500.0,8.493e-05,2]
[356351062,1742326236390,-500.0,8.493e-05,2]
[356351063,1742326236402,-500.0,8.493e-05,2]
[356351064,1742326236416,-323.53,8.493e-05,2]
[356351065,1742326236426,-452.2,8.493e-05,2]
[356351066,1742326236436,-500.0,8.493e-05,2]
[356351067,1742326236445,-552.96,8.493e-05,2]
[356351068,1742326236455,-500.0,8.493e-05,2]
[356351069,1742326236464,-500.0,8.493e-05,2]
[356351070,1742326236474,-500.0,8.493e-05,2]
[356351071,1742326236484,-500.0,8.493e-05,2]
[356351072,1742326236496,-285.90141511,8.493e-05,2]
[356351073,1742326236505,-500.0,8.493e-05,2]
[356351074,1742326236515,-500.0,8.493e-05,2]
[356351075,1742326236524,-500.0,8.506e-05,2]
[356351076,1742326236533,-500.0,8.506e-05,2]
[356351077,1742326236543,-500.0,8.506e-05,2]
[356351078,1742326236553,-501.12466227,8.506e-05,2]
[356351079,1742326236567,-500.0,8.506e-05,2]
[356351080,1742326236577,-500.0,8.603e-05,2]
[356351081,1742326236587,-500.0,8.603e-05,2]
[356351082,1742326236596,-500.0,8.766e-05,2]
[356351083,1742326236608,-500.0,8.766e-05,2]
[356351084,1742326236617,-500.0,8.766e-05,2]
[356351085,1742326236627,-500.0,8.766e-05,2]
[356351086,1742326236636,-500.0,8.766e-05,2]
[356351087,1742326236647,-500.0,8.766e-05,2]
[356351088,1742326236656,-23391.75,8.767e-05,2]
[356351089,1742326236665,-500.0,8.767e-05,2]
[356351090,1742326236675,-301.58,8.767e-05,2]
[356351091,1742326236685,-1010.56,8.767e-05,2]
[356351092,1742326236695,-274.71819015,8.767e-05,2]
[356351093,1742326236709,-225.28180985,8.767e-05,2]
[356351094,1742326236718,-628.29,8.767e-05,2]
[356351095,1742326236727,-500.0,8.767e-05,2]
[356351096,1742326236737,-488.16,8.767e-05,2]
[356351097,1742326236747,-500.0,8.767e-05,2]
[356351098,1742326236756,-552.96,8.767e-05,2]
[356351099,1742326236766,-500.0,8.767e-05,2]
[356351100,1742326236775,-500.0,8.767e-05,2]
[356351101,1742326236785,-500.0,8.767e-05,2]
[356351102,1742326236794,-177.25883088,9.04e-05,2]
[356351103,1742326236803,-1101.53136325,9.04e-05,2]
[356351104,1742326236813,-500.0,9.04e-05,2]
[356351105,1742326236822,-500.0,9.04e-05,2]
[356351106,1742326236831,-500.0,9.04e-05,2]
[356351107,1742326236840,-500.0,9.04e-05,2]
[356351108,1742326236850,-500.0,9.04e-05,2]
[356351109,1742326236860,-23391.75,9.041e-05,2]
[356351110,1742326236870,-569.877073,9.041e-05,2]
[356351111,1742326236881,-1010.56,9.041e-05,2]
[356351112,1742326236891,-500.0,9.041e-05,2]
[356351113,1742326236900,-500.0,9.041e-05,2]
[356351114,1742326236910,-500.0,9.041e-05,2]
[356351115,1742326236920,-552.96,9.041e-05,2]
[356351116,1742326236929,-500.0,9.041e-05,2]
[356351117,1742326236939,-500.0,9.041e-05,2]
[356351118,1742326236948,-500.0,9.041e-05,2]
[356351119,1742326236958,-500.0,9.112e-05,2]
[356351120,1742326236967,-500.0,9.112e-05,2]
[356351121,1742326236977,-159.33343111,9.113e-05,2]
[356351122,1742326236987,-500.0,9.137e-05,2]
[356351123,1742326236996,-578.69107207,9.138e-05,2]
[356351124,1742326237005,-500.0,9.138e-05,2]
[356351125,1742326237014,-500.0,9.138e-05,2]
[356351126,1742326237158,-500.0,9.138e-05,2]
[356351127,1742326237168,-500.0,9.138e-05,2]
[356351128,1742326237178,-500.0,9.138e-05,2]
[356351129,1742326237187,-500.0,9.138e-05,2]
[356351130,1742326237197,-500.0,9.138e-05,2]
[356351131,1742326237212,-500.0,9.138e-05,2]
[356351132,1742326237222,-500.0,9.138e-05,2]
[356351133,1742326237231,-590.68965374,9.138e-05,2]
[356351134,1742326237241,-500.0,9.138e-05,2]
[356351135,1742326237250,-405.85938732,9.138e-05,2]
[356351136,1742326237259,-500.0,9.138e-05,2]
[356351137,1742326237268,-500.0,9.138e-05,2]
[356351138,1742326237278,-233.78454122,9.138e-05,2]
[356351139,1742326237287,-88793.42685504,9.139e-05,2]
[356351140,1742326237299,-8319.86252054,9.139e-05,2]
[356351166,1742326238290,-1340.01216333,9.139e-05,2]
[356351168,1742326238301,-1724.21722602,9.139e-05,2]
[356351174,1742326238345,-2135.34576677,9.139e-05,2]
[356351176,1742326238357,-991.30369863,9.139e-05,2]
[356351242,1742326779168,24900.0,7.828e-05,2]
[356351243,1742327130103,-278.36533957,8.218e-05,2]
[356351246,1742327231096,-212.94663972,8.218e-05,2]
[356351247,1742327231127,-300.0,8.218e-05,2]
[356351248,1742327231155,-393.51416733,8.219e-05,2]
[356351281,1742327432678,-300.0,8.218e-05,2]
[356351282,1742327432688,-1646.69589134,8.219e-05,2]
[356351284,1742327432698,-500.0,8.219e-05,2]
[356351287,1742327432708,-842.13,8.219e-05,2]
[356351288,1742327432718,-500.0,8.219e-05,2]
[356351290,1742327432727,-500.0,8.219e-05,2]
[356351302,1742327432894,-185.26023685,8.219e-05,2]
[356351304,1742327432906,-500.0,8.219e-05,2]
[356351306,1742327432916,-500.0,8.219e-05,2]
[356351308,1742327432926,-500.0,8.219e-05,2]
[356351310,1742327432936,-461.83721547,8.219e-05,2]
[356351311,1742327432949,-500.0,8.219e-05,2]
[356351312,1742327432958,-500.0,8.219e-05,2]
[356351313,1742327432968,-500.0,8.219e-05,2]
[356351314,1742327432978,-500.0,8.219e-05,2]
[356351315,1742327432989,-159.97015006,8.219e-05,2]
[356351316,1742327432999,-500.0,8.219e-05,2]
[356351317,1742327433010,-500.0,8.219e-05,2]
[356351318,1742327433021,-500.0,8.219e-05,2]
[356351319,1742327433033,-500.0,8.219e-05,2]
[356351320,1742327433045,-500.0,8.219e-05,2]
[356351321,1742327433055,-500.0,8.219e-05,2]
[356351322,1742327433067,-500.0,8.219e-05,2]
[356351323,1742327433078,-500.0,8.219e-05,2]
[356351324,1742327433089,-500.0,8.219e-05,2]
[356351325,1742327433100,-500.0,8.219e-05,2]
[356351326,1742327433111,-500.0,8.219e-05,2]
[356351327,1742327433121,-510.50289995,8.219e-05,2]
[356351328,1742327433132,-500.0,8.219e-05,2]
[356351329,1742327433143,-500.0,8.219e-05,2]
[356351330,1742327433153,-500.0,8.219e-05,2]
[356351331,1742327433163,-500.0,8.219e-05,2]
[356351332,1742327433173,-190.57021611,8.219e-05,2]
[356351333,1742327433182,-500.0,8.219e-05,2]
[356351334,1742327433193,-500.0,8.219e-05,2]
[356351335,1742327433203,-500.0,8.219e-05,2]
[356351336,1742327433214,-508.75460743,8.219e-05,2]
[356351337,1742327433224,-509.98796707,8.219e-05,2]